fUSD/lending_fUSD_20251113
["ID","MTS","AMOUNT","RATE_DAILY","PERIOD"]
[393856831,1763044245068,-500.0,0.00040684,4]
[393856832,1763044245078,-150.0,0.00040684,4]
[393856833,1763044245088,-500.0,0.00040684,4]
[393856834,1763044245097,-152.66728149,0.00040684,4]
[393856835,1763044245107,-500.0,0.00040684,4]
[393856836,1763044245116,-500.0,0.00040684,4]
[393856837,1763044245126,-150.0,0.00040684,4]
[393856838,1763044245135,-500.0,0.00040684,4]
[393856839,1763044245145,-500.0,0.00040684,4]
[393856840,1763044245156,-500.0,0.00040684,4]
[393856841,1763044245171,-500.0,0.00040684,4]
[393856842,1763044245181,-500.0,0.00040684,4]
[393856843,1763044245191,-500.0,0.00040684,4]
[393856844,1763044245201,-408.45790101,0.00040684,4]
[393856845,1763044245210,-500.0,0.00040684,4]
[393856846,1763044245219,-150.0,0.00040684,4]
[393856847,1763044245229,-150.0,0.00040684,4]
[393856848,1763044245238,-150.0,0.00040684,4]
[393856849,1763044245248,-500.0,0.00040684,4]
[393856850,1763044245258,-500.0,0.00040684,4]
[393856851,1763044245268,-267.22218459,0.00040684,4]
[393856852,1763044245277,-500.0,0.00040684,4]
[393856853,1763044245286,-150.0,0.00040684,4]
[393856854,1763044245296,-500.0,0.00040684,4]
[393856855,1763044245306,-500.0,0.00040684,4]
[393856856,1763044245317,-300.0,0.00040685,2]
[393856857,1763044245327,-300.0,0.00040687,2]
[393856858,1763044245338,-152.0,0.00040694,5]
[393856859,1763044245348,-207.7405717,0.00040698,2]
[393856860,1763044245358,-300.0,0.000407,14]
[393856861,1763044245368,-177.74,0.000407,14]
[393856862,1763044245378,-150.0,0.000407,60]
[393856863,1763044245388,-300.0,0.00040703,2]
[393856864,1763044245397,-300.0,0.00040704,2]
[393856865,1763044245407,-300.0,0.00040705,2]
[393856866,1763044245417,-300.0,0.0004071,2]
[393856867,1763044245428,-500.0,0.00040711,15]
[393856868,1763044245437,-500.0,0.00040711,15]
[393856869,1763044245446,-500.0,0.00040711,15]
[393856870,1763044245455,-500.0,0.00040711,15]
[393856871,1763044245464,-500.0,0.00040711,15]
[393856872,1763044245474,-500.0,0.00040711,15]
[393856873,1763044245483,-500.0,0.00040711,15]
[393856874,1763044245493,-500.0,0.00040711,15]
[393856875,1763044245503,-500.0,0.00040711,15]
[393856876,1763044245513,-500.0,0.00040711,15]
[393856877,1763044245523,-500.0,0.00040711,15]
[393856878,1763044245534,-500.0,0.00040711,15]
[393856879,1763044245543,-183.29122943,0.00040711,15]
[393856880,1763044245553,-500.0,0.00040711,15]
[393856881,1763044245562,-500.0,0.00040711,15]
[393856882,1763044245572,-500.0,0.00040711,15]
[393856883,1763044245580,-500.0,0.00040711,15]
[393856884,1763044245588,-500.0,0.00040711,15]
[393856885,1763044245598,-500.0,0.00040711,15]
[393856886,1763044245607,-500.0,0.00040711,15]
[393856887,1763044245617,-500.0,0.00040711,15]
[393856888,1763044245627,-300.0,0.00040711,2]
[393856889,1763044245636,-300.0,0.00040715,2]
[393856890,1763044245645,-300.0,0.00040715,2]
[393856891,1763044245655,-300.0,0.00040722,2]
[393856892,1763044245667,-300.0,0.00040726,2]
[393856893,1763044245676,-195.50802629,0.00040726,120]
[393856894,1763044245686,-1000.0,0.00040726,2]
[393856895,1763044245695,-33305.0021,0.00040726,2]
[393856896,1763044245704,-4653.69150672,0.00040728,2]
[393856897,1763044245714,-300.0,0.0004073,2]
[393856898,1763044245724,-300.0,0.00040733,2]
[393856899,1763044245734,-300.0,0.00040734,2]
[393856900,1763044245743,-300.0,0.00040737,2]
[393856901,1763044245751,-478.69779641,0.0004074,120]
[393856902,1763044245761,-300.0,0.00040742,2]
[393856903,1763044245771,-206.3774486,0.00040743,120]
[393856904,1763044245781,-300.0,0.0004075,2]
[393856905,1763044245791,-300.0,0.00040751,2]
[393856906,1763044245800,-300.0,0.00040756,2]
[393856907,1763044245810,-300.0,0.00040756,2]
[393856908,1763044245819,-37977.88467165,0.00040757,15]
[393856909,1763044245829,-185.06485978,0.00040757,2]
[393856910,1763044245839,-211.19394873,0.00040757,13]
[393856911,1763044245850,-1725.16456899,0.00040759,2]
[393856912,1763044245860,-300.0,0.00040762,2]
[393856913,1763044245870,-300.0,0.00040763,2]
[393856914,1763044245881,-300.0,0.00040764,2]
[393856915,1763044245892,-386.2160572,0.00040764,2]
[393856916,1763044245901,-300.0,0.00040773,2]
[393856917,1763044245912,-300.0,0.00040776,2]
[393856918,1763044245923,-300.0,0.00040777,2]
[393856919,1763044245932,-300.0,0.00040784,2]
[393856920,1763044245942,-300.0,0.00040786,2]
[393856921,1763044245952,-300.0,0.00040789,2]
[393856923,1763044245963,-300.0,0.00040791,2]
[393856925,1763044245973,-5000.0,0.000408,120]
[393856926,1763044245983,-890.0,0.000408,14]
[393856927,1763044245992,-300.0,0.00040801,2]
[393856928,1763044246001,-300.0,0.00040804,2]
[393856929,1763044246011,-300.0,0.00040805,2]
[393856930,1763044246020,-300.0,0.00040811,2]
[393856932,1763044246029,-172.1,0.00040814,14]
[393856933,1763044246039,-300.0,0.00040816,2]
[393856935,1763044246049,-300.0,0.00040819,2]
[393856937,1763044246059,-12587.0173967,0.00040819,2]
[393856938,1763044246069,-200.0,0.00040821,2]
[393856940,1763044246078,-200.0,0.00040821,4]
[393856941,1763044246087,-200.0,0.00040821,2]
[393856943,1763044246098,-150.0,0.00040821,4]
[393856945,1763044246107,-204.43135743,0.00040821,4]
[393856946,1763044246116,-500.0,0.00040821,4]
[393856948,1763044246126,-150.0,0.00040821,4]
[393856949,1763044246135,-410.45061376,0.00040821,4]
[393856951,1763044246152,-500.0,0.00040821,4]
[393856953,1763044246165,-500.0,0.00040821,4]
[393856955,1763044246174,-155.63392892,0.00040821,4]
[393856956,1763044246184,-500.0,0.00040821,4]
[393856958,1763044246194,-500.0,0.00040821,4]
[393856960,1763044246203,-500.0,0.00040821,4]
[393856962,1763044246213,-150.0,0.00040821,4]
[393856963,1763044246223,-323.11884486,0.00040821,4]
[393856965,1763044246233,-500.0,0.00040821,4]
[393856967,1763044246243,-500.0,0.00040821,4]
[393856968,1763044246252,-500.0,0.00040821,4]
[393856970,1763044246263,-387.57070207,0.00040821,4]
[393856972,1763044246272,-500.0,0.00040821,4]
[393856973,1763044246282,-500.0,0.00040821,4]
[393856975,1763044246292,-203.86093113,0.00040821,4]
[393856977,1763044246302,-150.0,0.00040821,4]
[393856979,1763044246312,-150.0,0.00040821,4]
[393856980,1763044246323,-162.5471274,0.00040821,4]
[393856981,1763044246332,-314.4734072,0.00040821,4]
[393856982,1763044246341,-500.0,0.00040821,4]
[393856983,1763044246351,-242.40227646,0.00040821,4]
[393856984,1763044246361,-500.0,0.00040821,4]
[393856985,1763044246371,-500.0,0.00040821,4]
[393856986,1763044246381,-169.04,0.00040821,30]
[393856987,1763044246391,-980.05,0.00040821,4]
[393856988,1763044246401,-300.0,0.00040822,2]
[393856989,1763044246412,-172.1,0.00040822,14]
[393856990,1763044246422,-500.0,0.00040825,7]
[393856991,1763044246430,-505.31022957,0.00040825,20]
[393856992,1763044246441,-381.36604537,0.00040825,20]
[393856993,1763044246450,-500.0,0.00040825,20]
[393856994,1763044246461,-500.0,0.00040825,20]
[393856995,1763044246471,-562.30427097,0.00040825,20]
[393856996,1763044246481,-312746.2166948,0.00040826,2]
[393856997,1763044246490,-13855.3750507,0.00040826,2]
[393856998,1763044246500,-67747.9291464,0.00040826,2]
[393856999,1763044246510,-11410.0058123,0.00040826,2]
[393857000,1763044246519,-109052.5691396,0.00040826,2]
[393857001,1763044246529,-150.0,0.00040826,2]
[393857002,1763044246540,-2028.4372,0.00040826,30]
[393857003,1763044246550,-151.0,0.00040827,2]
[393857004,1763044246560,-151.0,0.00040827,2]
[393857005,1763044246571,-21311.95,0.00040828,120]
[393857006,1763044246580,-172.09878844,0.00040829,14]
[393857007,1763044246591,-306.72261386,0.0004083,7]
[393857009,1763044246602,-500.0,0.0004083,4]
[393857011,1763044246611,-339.70644284,0.00040831,30]
[393857013,1763044246621,-300.0,0.00040834,2]
[393857015,1763044246630,-152.085378,0.00040837,120]
[393857017,1763044246639,-151.0,0.00040837,120]
[393857019,1763044246649,-151.0,0.00040837,30]
[393857021,1763044246661,-151.0,0.00040837,30]
[393857023,1763044246671,-151.0,0.00040837,120]
[393857025,1763044246680,-151.0,0.00040837,120]
[393857027,1763044246690,-151.0,0.00040837,120]
[393857029,1763044246700,-151.0,0.00040837,120]
[393857031,1763044246709,-151.0,0.00040837,120]
[393857033,1763044246718,-151.0,0.00040837,120]
[393857035,1763044246729,-151.0,0.00040837,120]
[393857037,1763044246738,-224.463566,0.00040837,60]
[393857039,1763044246748,-158.519266,0.00040837,120]
[393857041,1763044246758,-158.519266,0.00040837,120]
[393857042,1763044246767,-158.519266,0.00040837,120]
[393857044,1763044246777,-158.519266,0.00040837,120]
[393857046,1763044246786,-158.519266,0.00040837,120]
[393857048,1763044246796,-158.519266,0.00040837,120]
[393857050,1763044246806,-158.519266,0.00040837,120]
[393857052,1763044246816,-158.519266,0.00040837,120]
[393857054,1763044246825,-158.519266,0.00040837,120]
[393857056,1763044246835,-158.519266,0.00040837,120]
[393857058,1763044246844,-158.519266,0.00040837,120]
[393857060,1763044246854,-158.519266,0.00040837,120]
[393857062,1763044246863,-158.519266,0.00040837,120]
[393857064,1763044246874,-158.519266,0.00040837,120]
[393857067,1763044246889,-158.519266,0.00040837,120]
[393857068,1763044246899,-158.519266,0.00040837,120]
[393857069,1763044246909,-158.519266,0.00040837,120]
[393857070,1763044246918,-158.519266,0.00040837,120]
[393857071,1763044246927,-158.519266,0.00040837,120]
[393857072,1763044246936,-158.519274,0.00040837,120]
[393857073,1763044246945,-151.0,0.00040837,120]
[393857074,1763044246955,-155.934058,0.00040837,120]
[393857075,1763044246964,-151.0,0.00040837,120]
[393857076,1763044246974,-300.0,0.00040837,2]
[393857077,1763044246983,-300.0,0.0004084,2]
[393857078,1763044246992,-300.0,0.00040847,2]
[393857079,1763044247001,-549.92,0.00040849,2]
[393857080,1763044247010,-549.92,0.00040849,2]
[393857081,1763044247020,-150.0,0.00040849,2]
[393857082,1763044247029,-549.92,0.00040849,2]
[393857083,1763044247038,-169.32,0.00040849,2]
[393857084,1763044247047,-1207.25,0.00040849,2]
[393857085,1763044247056,-284.11,0.00040849,2]
[393857086,1763044247065,-150.0,0.00040849,2]
[393857088,1763044247075,-359.28,0.00040849,2]
[393857090,1763044247085,-549.92,0.00040849,2]
[393857092,1763044247094,-169.32,0.00040849,2]
[393857094,1763044247103,-169.32,0.00040849,2]
[393857113,1763044247269,-699.71,0.00040849,2]
[393857115,1763044247279,-699.71,0.00040849,2]
[393857117,1763044247289,-173.84,0.00040849,2]
[393857119,1763044247299,-2045.83,0.00040849,2]
[393857121,1763044247308,-477.93,0.00040849,2]
[393857123,1763044247318,-416.38,0.00040849,2]
[393857125,1763044247328,-699.71,0.00040849,2]
[393857127,1763044247337,-177.09,0.00040849,2]
[393857129,1763044247346,-150.0,0.00040849,2]
[393857131,1763044247356,-477.93,0.00040849,2]
[393857133,1763044247366,-416.38,0.00040849,2]
[393857135,1763044247376,-699.71,0.00040849,2]
[393857137,1763044247385,-699.71,0.00040849,2]
[393857139,1763044247395,-416.38,0.00040849,2]
[393857141,1763044247404,-477.93,0.00040849,2]
[393857143,1763044247415,-477.93,0.00040849,2]
[393857145,1763044247425,-699.71,0.00040849,2]
[393857147,1763044247435,-416.38,0.00040849,2]
[393857149,1763044247444,-699.71,0.00040849,2]
[393857151,1763044247453,-477.93,0.00040849,2]
[393857153,1763044247463,-416.38,0.00040849,2]
[393857155,1763044247472,-477.93,0.00040849,2]
[393857157,1763044247481,-699.71,0.00040849,2]
[393857159,1763044247491,-416.38,0.00040849,2]
[393857161,1763044247501,-699.71,0.00040849,2]
[393857163,1763044247510,-416.38,0.00040849,2]
[393857165,1763044247520,-699.71,0.00040849,2]
[393857167,1763044247530,-416.38,0.00040849,2]
[393857169,1763044247540,-699.71,0.00040849,2]
[393857171,1763044247549,-416.38,0.00040849,2]
[393857173,1763044247559,-699.71,0.00040849,2]
[393857175,1763044247568,-416.38,0.00040849,2]
[393857177,1763044247578,-416.38,0.00040849,2]
[393857179,1763044247588,-699.71,0.00040849,2]
[393857181,1763044247598,-699.71,0.00040849,2]
[393857183,1763044247608,-416.38,0.00040849,2]
[393857185,1763044247618,-699.71,0.00040849,2]
[393857187,1763044247628,-416.38,0.00040849,2]
[393857189,1763044247638,-416.38,0.00040849,2]
[393857191,1763044247647,-699.71,0.00040849,2]
[393857193,1763044247656,-416.38,0.00040849,2]
[393857195,1763044247667,-699.71,0.00040849,2]
[393857198,1763044247677,-416.38,0.00040849,2]
[393857200,1763044247687,-611.82,0.00040849,2]
[393857201,1763044247697,-416.38,0.00040849,2]
[393857204,1763044247706,-416.38,0.00040849,2]
[393857205,1763044247716,-416.38,0.00040849,2]
[393857207,1763044247725,-416.38,0.00040849,2]
[393857210,1763044247735,-416.38,0.00040849,2]
[393857212,1763044247744,-416.38,0.00040849,2]
[393857213,1763044247754,-416.38,0.00040849,2]
[393857216,1763044247763,-416.38,0.00040849,2]
[393857217,1763044247773,-409.5,0.00040849,2]
[393857219,1763044247782,-151.0,0.00040854,14]
[393857221,1763044247792,-203.76644314,0.00040857,30]
[393857223,1763044247801,-203.76644314,0.00040857,30]
[393857225,1763044247810,-1000.0,0.00040857,30]
[393857228,1763044247820,-1007.12936943,0.00040857,30]
[393857229,1763044247830,-498058.67833372,0.00040857,7]
[393857250,1763044248054,-1317.0,0.00032211,2]
[393857252,1763044248063,-22039.4678487,0.00040857,7]
[393857254,1763044248074,-312.66,0.00040857,7]
[393857259,1763044248113,-1097.0,0.00040857,7]
[393857261,1763044248125,-693.89683839,0.00040857,7]
[393857263,1763044248136,-260.860001,0.00040857,7]
[393857281,1763044248296,-1317.0,0.00035211,2]
[393857284,1763044248311,-1317.0,0.00038211,2]
[393857286,1763044248325,-1575.23353818,0.00040857,7]
[393857352,1763044248961,-1.7e-07,0.00040857,7]
[393857381,1763044249231,-51140.44800003,0.00040857,7]
[393857417,1763044249563,-1137.47132548,0.00040857,7]
[393857422,1763044249599,-158.29381148,0.00040857,7]
[393857448,1763044249830,-6872.9844,0.00040857,7]
[393857474,1763044250084,-2140.13353193,0.00040857,7]
[393857477,1763044250106,-2398.17825142,0.00040857,7]
[393857480,1763044250125,-615507.38114062,0.00040857,7]
[393857482,1763044250136,-547.65771714,0.00040857,7]
[393857484,1763044250147,-47243.23910767,0.00040857,7]
[393858563,1763044320191,150.0,0.00028607,120]
[393858564,1763044379617,500.0,0.00016899,2]
[393859882,1763044561014,-500.0,0.00017,2]
[393859884,1763044674128,505.71,0.00013699,2]
[393859887,1763044689064,372.0,0.00030137,120]
[393859888,1763044784543,187.0,0.000301,120]
[393859896,1763045041275,408.75084001,0.00040785,120]
[393859961,1763045265363,349.43187241,0.00040785,30]
[393859964,1763045428785,250.0,0.00017,2]
[393859994,1763045431404,-1276.17863191,0.000176,2]
[393859995,1763045431413,-966.8,0.00017629,2]
[393859996,1763045431423,-1397.67729499,0.0001768,2]
[393859997,1763045431432,-126.92128769,0.0001768,2]
[393859998,1763045431444,-68.07871231,0.0001768,2]
[393859999,1763045431453,-300.0,0.00017731,2]
[393860000,1763045431463,-250.0,0.00017833,2]
[393860001,1763045431472,-250.0,0.00018083,2]
[393860002,1763045431481,-300.0,0.00018132,2]
[393860003,1763045431490,-127.23580977,0.00018132,2]
[393860004,1763045431501,-172.76419023,0.00018132,2]
[393860005,1763045431511,-295.37305769,0.00018513,2]
[393860006,1763045431520,-331.86275208,0.00018602,2]
[393860007,1763045431531,-388.81915238,0.00018602,2]
[393860008,1763045431554,-479.31809554,0.00018602,2]
[393860009,1763045431564,-300.0,0.00018602,2]
[393860010,1763045431573,-16.61384446,0.00018602,2]
[393860011,1763045431584,-283.38615554,0.00018602,2]
[393860012,1763045431594,-10.61384446,0.00018602,2]
[393860013,1763045431606,-1189.38615554,0.00018602,2]
[393860014,1763045431616,-151.0,0.00018603,2]
[393860015,1763045431626,-151.0,0.00018603,2]
[393860016,1763045431635,-151.0,0.00018603,2]
[393860017,1763045431645,-151.0,0.00018603,2]
[393860018,1763045431654,-151.0,0.00018603,2]
[393860019,1763045431663,-49.58104659,0.00018603,2]
[393860092,1763045437548,-101.41895341,0.00018603,2]
[393860093,1763045437558,-171.82790242,0.00018603,2]
[393860095,1763045438331,-1.36090936,0.00018603,2]
[393860096,1763045438342,-650.63909051,0.00018615,2]
[393860097,1763045438391,-5552.51701183,0.00018615,2]
[393860098,1763045438404,-13605.42481249,0.00018615,2]
[393860099,1763045438413,-1700.0,0.00018658,2]
[393860100,1763045438423,-1700.0,0.00018762,2]
[393860101,1763045438433,-1700.0,0.00018884,2]
[393860102,1763045438442,-1700.0,0.00018972,2]
[393860103,1763045438452,-1700.0,0.00018989,2]
[393860104,1763045438461,-1700.0,0.00018989,2]
[393860105,1763045438471,-300.0,0.00019,2]
[393860106,1763045438481,-1700.0,0.00019149,2]
[393860107,1763045438492,-1000.0,0.00019174,2]
[393860108,1763045438502,-719.590548,0.00019175,2]
[393860114,1763045439491,-980.409452,0.00019175,2]
[393860115,1763045439500,-10449.590548,0.00019235,2]
[393860116,1763045439567,-691.11242467,0.00019235,2]
[393860117,1763045439579,-3547.5,0.00019235,2]
[393860118,1763045439590,-509.85,0.00019235,2]
[393860119,1763045439601,-802.45759044,0.00019235,2]
[393860120,1763045439634,-1109.0,0.00019235,2]
[393860121,1763045439646,-1505.0,0.00019235,2]
[393860122,1763045439754,-3795.33614685,0.00019235,2]
[393860123,1763045439765,-23663.27709268,0.00019235,2]
[393860124,1763045439777,-9506.78639084,0.00019235,2]
[393860125,1763045439787,-298.51436949,0.00019235,2]
[393860142,1763045444031,-364121.57543703,0.00019235,2]
[393860143,1763045444042,-1700.0,0.00019274,2]
[393860144,1763045444058,-850.0,0.00019334,2]
[393860145,1763045444068,-1700.0,0.00019335,2]
[393860146,1763045444078,-1700.0,0.00019379,2]
[393860147,1763045444090,-5290.48384446,0.00019391,2]
[393860148,1763045444101,-250.0,0.00019392,2]
[393860149,1763045444111,-300.0,0.00019392,2]
[393860150,1763045444121,-275.96981039,0.00019392,4]
[393860151,1763045444131,-2500.0,0.00019392,2]
[393860152,1763045444141,-195.0,0.00019392,2]
[393860153,1763045444151,-193.70507279,0.00019392,2]
[393860154,1763045444161,-500.0,0.00019562,2]
[393860155,1763045444171,-500.0,0.00019562,2]
[393860156,1763045444180,-500.0,0.00019562,2]
[393860157,1763045444190,-500.0,0.00019562,2]
[393860158,1763045444200,-502.69404323,0.00019562,2]
[393860159,1763045444209,-500.0,0.00019562,2]
[393860160,1763045444219,-1700.0,0.00019563,2]
[393860161,1763045444230,-1700.0,0.00019564,2]
[393860162,1763045444242,-1700.0,0.0001959,2]
[393860163,1763045444252,-1700.0,0.00019592,2]
[393860164,1763045444262,-1700.0,0.00019618,2]
[393860165,1763045444273,-11462.71499633,0.00019619,2]
[393860166,1763045444283,-1700.0,0.00019693,2]
[393860167,1763045444292,-1700.0,0.00019705,2]
[393860168,1763045444309,-5616.91176323,0.00019765,2]
[393860169,1763045444318,-234.6117,0.00019838,2]
[393860170,1763045444327,-280.121,0.00019838,2]
[393860171,1763045444337,-1763.49461482,0.00019873,2]
[393860172,1763045444347,-1700.0,0.00019919,2]
[393860173,1763045444358,-1700.0,0.00019937,2]
[393860174,1763045444368,-1700.0,0.00019977,2]
[393860175,1763045444379,-1700.0,0.00020051,2]
[393860176,1763045444389,-500.0,0.0002011,2]
[393860177,1763045444400,-1700.0,0.0002013,2]
[393860178,1763045444410,-1700.0,0.00020165,2]
[393860179,1763045444421,-505.71,0.00020187,2]
[393860180,1763045444430,-2294.54,0.00020275,2]
[393860181,1763045444441,-700.0,0.00020285,2]
[393860182,1763045444451,-420.0,0.00020285,2]
[393860183,1763045444462,-1700.0,0.00020299,2]
[393860184,1763045444472,-2840.13,0.00020319,2]
[393860185,1763045444482,-2500.0,0.00020323,2]
[393860186,1763045444494,-2500.0,0.00020323,2]
[393860187,1763045444503,-250.0,0.00020359,2]
[393860188,1763045444512,-1680.0,0.00020384,2]
[393860189,1763045444522,-999.0,0.00020489,3]
[393860190,1763045444532,-15850.39,0.00020665,2]
[393860191,1763045444542,-5000.0,0.00021918,2]
[393860192,1763045444559,-587.0,0.00022119,2]
[393860193,1763045444569,-2351.0,0.00022336,2]
[393860194,1763045444578,-500.0,0.00023056,2]
[393860195,1763045444588,-478.69779641,0.00023101,2]
[393860196,1763045444598,-500.0,0.00023359,2]
[393860197,1763045444608,-481.58279525,0.0002336,2]
[393860199,1763045444619,-423.03095329,0.0002336,2]
[393860200,1763045444628,-500.0,0.0002336,2]
[393860201,1763045444638,-500.0,0.0002336,2]
[393860202,1763045444648,-500.0,0.0002336,2]
[393860204,1763045444657,-473.60389037,0.0002336,2]
[393860206,1763045444667,-500.0,0.0002336,2]
[393860208,1763045444677,-500.0,0.00023397,2]
[393860210,1763045444686,-500.0,0.0002358,2]
[393860212,1763045444696,-502.20263233,0.00023907,2]
[393860214,1763045444706,-500.0,0.00023908,2]
[393860216,1763045444716,-500.0,0.00023993,2]
[393860217,1763045444725,-823.0,0.0002412,2]
[393860218,1763045444735,-3292.0,0.00024475,2]
[393860219,1763045444745,-184.30084438,0.00024541,2]
[393860220,1763045444754,-500.0,0.000248,2]
[393860221,1763045444764,-500.0,0.00024814,2]
[393860222,1763045444773,-501.12226289,0.00025348,2]
[393860223,1763045444782,-348.0,0.00026301,2]
[393860224,1763045444791,-500.0,0.00026675,2]
[393860225,1763045444803,-505.71,0.00026676,2]
[393860226,1763045444813,-4609.0,0.00026818,2]
[393860227,1763045444822,-1000.0,0.00027223,2]
[393860228,1763045444832,-156.53818292,0.00027297,2]
[393860229,1763045444841,-500.0,0.00027396,2]
[393860230,1763045444851,-2516.06,0.00027397,2]
[393860231,1763045444860,-9999.99,0.00027397,2]
[393860232,1763045444870,-1535.23,0.00027397,2]
[393860233,1763045444879,-1453.64,0.00027397,2]
[393860234,1763045444889,-150.99,0.00027397,2]
[393860235,1763045444898,-150.99,0.00027397,2]
[393860236,1763045444908,-3786.53,0.00027397,2]
[393860237,1763045444917,-999.99,0.00027397,2]
[393860238,1763045444926,-299.99,0.00027397,12]
[393860239,1763045444935,-499.99,0.00027397,2]
[393860240,1763045444945,-1522.85,0.00027397,2]
[393860241,1763045444955,-3815.96283398,0.00027397,2]
[393860242,1763045444992,-755.12600427,0.00027397,2]
[393860249,1763045445614,-373.96952708,0.00027397,2]
[393860250,1763045445627,-736.64384478,0.00027397,2]
[393860251,1763045445859,-535.266,0.00027397,2]
[393860252,1763045445870,-800.0,0.00027397,2]
[393860253,1763045445882,-426.19068,0.00027397,2]
[393860255,1763045445926,-866.82110989,0.00027397,2]
[393860256,1763045445936,-2761.1,0.00027397,2]
[393860257,1763045445945,-1169.12,0.00027397,2]
[393860258,1763045445954,-9225.64099944,0.00027397,2]
[393860265,1763045484573,154.241589,0.00040785,120]
[393864607,1763045551492,320.95,0.00040785,30]
[393864793,1763045559015,615.50511582,0.00040785,30]
[393864796,1763045639283,744.29,0.00013622,2]
[393864797,1763045639309,294.66,0.00013622,2]
[393864798,1763045639501,1038.95,0.00014311,2]
[393864799,1763045639719,666.39,0.00015,2]
[393864800,1763045639742,372.56,0.00015,2]
[393864801,1763045640061,1038.95,0.00015689,2]
[393864802,1763045640326,588.49,0.00016378,2]
[393864803,1763045640352,450.46,0.00016378,2]
[393864806,1763045721767,1549.54,0.0001699,2]
[393864807,1763045733509,-873.90239298,0.0001699,2]
[393864808,1763045735987,-3067.48495003,0.0001699,2]
[393864809,1763045739108,-10000.01,0.0001699,2]
[393864810,1763045739230,-10000.01,0.0001699,2]
[393864811,1763045742055,-170.17901379,0.0001699,2]
[393864812,1763045742157,-4260.53258909,0.0001699,2]
[393864813,1763045783662,647.76810778,0.0001699,2]
[393864815,1763045825695,300.0,0.00040785,120]
[393864816,1763045826334,300.0,0.00040785,120]
[393864817,1763046003148,526152.0,0.00040785,30]
[393864818,1763046003207,10393.78006849,0.00040785,30]
[393864823,1763046167099,169.98,0.00030137,120]
[393864827,1763046303109,1302.53032326,0.00040783,30]
[393864856,1763046631645,-271.54991355,0.00017066,2]
[393864862,1763046631687,-606.48713533,0.00017066,2]
[393864864,1763046631699,-160.91295112,0.00017066,2]
[393864866,1763046631709,-250.0,0.00017153,2]
[393864868,1763046631718,-393.47916949,0.00017661,2]
[393864870,1763046631728,-1038.95,0.00017755,2]
[393864872,1763046631737,-1.88053275,0.00018444,2]
[393864875,1763046631755,-501.82068701,0.00018444,2]
[393864878,1763046631766,-535.24878024,0.00018444,2]
[393864880,1763046631775,-150.0,0.00018612,2]
[393864882,1763046631785,-250.0,0.00018773,2]
[393864884,1763046631796,-407.5,0.00018874,2]
[393864885,1763046631806,-1200.0,0.00019132,2]
[393864887,1763046631815,-237.0,0.00019133,2]
[393864888,1763046631825,-300.0,0.00019133,2]
[393864889,1763046631834,-300.0,0.00019133,2]
[393864890,1763046631843,-1038.95,0.00019133,2]
[393864891,1763046631853,-252.98710675,0.00019134,2]
[393864892,1763046631864,-47.01289325,0.00019134,2]
[393864893,1763046631873,-1276.6085244,0.00019135,2]
[393864894,1763046631885,-1009.87494404,0.00019135,2]
[393864895,1763046631897,-281.60513156,0.00019135,2]
[393864896,1763046631906,-234.6117,0.00019135,2]
[393864897,1763046631916,-1000.0,0.00019135,2]